fUSD/lending_fUSD_20240212
["ID","MTS","AMOUNT","RATE_DAILY","PERIOD"]
[313888330,1707769922123,-19827.0,0.00037148,2]
[313888331,1707769922132,-2924.0,0.00037148,2]
[313888332,1707769922141,-242.951,0.00037148,2]
[313888333,1707769922150,-8156.0,0.00037148,2]
[313888334,1707769922160,-1036.0,0.00037148,2]
[313888335,1707769922169,-952.0,0.00037148,2]
[313888336,1707769922178,-2832.0,0.00037148,2]
[313888337,1707769922187,-841.0,0.00037148,2]
[313888338,1707769922197,-1863.0,0.00037148,2]
[313888339,1707769922208,-200.0,0.000372,12]
[313888340,1707769922218,-200.0,0.000372,10]
[313888341,1707769922227,-35674.71,0.000372,7]
[313888342,1707769922236,-2248.32,0.000372,7]
[313888343,1707769922246,-14641.06,0.000372,7]
[313888344,1707769922255,-150.0,0.00037203,2]
[313888345,1707769922265,-154.16,0.00037228,2]
[313888346,1707769922274,-914.46,0.0003724,2]
[313888347,1707769922283,-914.46,0.0003724,2]
[313888348,1707769922293,-914.46,0.0003724,2]
[313888349,1707769922302,-153.60645692,0.00037245,2]
[313888350,1707769922312,-951.64140687,0.00037246,2]
[313888351,1707769922321,-500.0,0.0003726,2]
[313888352,1707769922330,-500.0,0.0003726,2]
[313888353,1707769922340,-584.87523974,0.0003726,2]
[313888354,1707769922349,-500.0,0.0003726,2]
[313888355,1707769922358,-500.0,0.0003726,2]
[313888356,1707769922367,-500.0,0.0003726,2]
[313888357,1707769922376,-966.32,0.0003726,2]
[313888358,1707769922386,-500.0,0.0003726,12]
[313888359,1707769922395,-500.0,0.0003726,2]
[313888360,1707769922404,-807.54,0.0003726,2]
[313888361,1707769922413,-580.00398287,0.0003726,2]
[313888362,1707769922422,-500.0,0.0003726,2]
[313888363,1707769922431,-509.91,0.0003726,2]
[313888364,1707769922440,-500.0,0.0003726,2]
[313888365,1707769922449,-500.0,0.0003726,2]
[313888366,1707769922460,-500.22,0.0003726,2]
[313888367,1707769922469,-580.77,0.0003726,2]
[313888368,1707769922478,-500.0,0.0003726,2]
[313888369,1707769922487,-952.06,0.0003726,2]
[313888370,1707769922497,-156.14,0.0003726,2]
[313888371,1707769922507,-500.0,0.0003726,2]
[313888372,1707769922517,-500.0,0.0003726,2]
[313888373,1707769922526,-367.82,0.0003726,2]
[313888374,1707769922536,-538.47,0.0003726,2]
[313888375,1707769922546,-500.0,0.0003726,2]
[313888376,1707769922555,-1235.07,0.0003726,2]
[313888377,1707769922566,-500.0,0.0003726,2]
[313888378,1707769922577,-1080.75,0.0003726,2]
[313888379,1707769922586,-728.15,0.0003726,2]
[313888380,1707769922595,-796.14,0.0003726,2]
[313888381,1707769922605,-588.98,0.0003726,2]
[313888382,1707769922614,-5409.76,0.0003726,2]
[313888383,1707769922624,-500.0,0.0003726,2]
[313888384,1707769922635,-1331.32,0.0003726,2]
[313888385,1707769922645,-917.05,0.0003726,2]
[313888386,1707769922658,-3280.01,0.0003726,2]
[313888387,1707769922667,-9977.66,0.0003726,2]
[313888388,1707769922676,-500.0,0.0003726,2]
[313888389,1707769922685,-4143.77,0.0003726,2]
[313888390,1707769922694,-5964.37,0.0003726,2]
[313888391,1707769922706,-695.09,0.0003726,2]
[313888392,1707769922715,-561.48,0.0003726,2]
[313888393,1707769922724,-843.63,0.0003726,2]
[313888394,1707769922733,-984.81,0.0003726,2]
[313888395,1707769922742,-1158.95,0.0003726,2]
[313888396,1707769922751,-500.0,0.0003726,2]
[313888397,1707769922761,-500.0,0.0003726,2]
[313888398,1707769922770,-2406.89,0.0003726,2]
[313888399,1707769922779,-578.56,0.0003726,2]
[313888400,1707769922788,-819.76,0.0003726,2]
[313888401,1707769922797,-339.43,0.0003726,2]
[313888402,1707769922806,-1375.77,0.0003726,2]
[313888403,1707769922815,-4244.4,0.0003726,2]
[313888404,1707769922824,-500.0,0.0003726,2]
[313888405,1707769922833,-500.0,0.0003726,2]
[313888406,1707769922843,-500.0,0.0003726,2]
[313888407,1707769922852,-846.93,0.0003726,2]
[313888408,1707769922863,-3071.04,0.0003726,2]
[313888409,1707769922871,-728.9,0.0003726,2]
[313888410,1707769922881,-616.73,0.0003726,2]
[313888411,1707769922890,-500.0,0.0003726,2]
[313888412,1707769922899,-560.54,0.0003726,2]
[313888413,1707769922908,-1820.56,0.0003726,2]
[313888414,1707769922917,-743.91,0.0003726,2]
[313888415,1707769922927,-500.0,0.0003726,2]
[313888416,1707769922935,-735.16,0.0003726,2]
[313888417,1707769922945,-1028.39,0.0003726,2]
[313888418,1707769922955,-1049.27,0.0003726,2]
[313888419,1707769922965,-4338.57,0.0003726,2]
[313888420,1707769922974,-2013.56,0.0003726,2]
[313888421,1707769922983,-1012.67,0.0003726,2]
[313888422,1707769922993,-381.31051016,0.0003726,2]
[313888423,1707769923002,-1445.06,0.0003726,2]
[313888424,1707769923011,-500.0,0.0003726,2]
[313888425,1707769923020,-1677.14,0.0003726,2]
[313888426,1707769923029,-951.75,0.0003726,2]
[313888427,1707769923038,-1575.25,0.0003726,2]
[313888428,1707769923049,-1311.14,0.0003726,2]
[313888429,1707769923059,-1386.13,0.0003726,2]
[313888430,1707769923068,-893.85,0.0003726,2]
[313888431,1707769923077,-1280.91,0.0003726,2]
[313888432,1707769923086,-500.0,0.0003726,2]
[313888433,1707769923095,-7777.87,0.0003726,2]
[313888434,1707769923104,-501.05,0.0003726,2]
[313888435,1707769923114,-502.28,0.0003726,2]
[313888436,1707769923123,-814.8,0.0003726,2]
[313888437,1707769923132,-961.32,0.0003726,2]
[313888438,1707769923141,-500.0,0.0003726,2]
[313888439,1707769923150,-551.08,0.0003726,2]
[313888440,1707769923159,-500.0,0.0003726,2]
[313888441,1707769923168,-812.86,0.0003726,2]
[313888442,1707769923177,-512.59,0.0003726,2]
[313888443,1707769923187,-1261.01,0.0003726,2]
[313888444,1707769923196,-5713.47,0.0003726,2]
[313888445,1707769923207,-5782.92,0.0003726,2]
[313888446,1707769923220,-3592.16,0.0003726,2]
[313888447,1707769923229,-500.0,0.0003726,2]
[313888448,1707769923239,-1417.96,0.0003726,2]
[313888449,1707769923248,-1507.74,0.0003726,2]
[313888450,1707769923257,-500.0,0.0003726,2]
[313888451,1707769923266,-500.0,0.0003726,2]
[313888452,1707769923276,-2719.11,0.0003726,2]
[313888453,1707769923286,-735.15,0.0003726,2]
[313888454,1707769923295,-1563.36,0.0003726,2]
[313888455,1707769923305,-953.13,0.0003726,2]
[313888456,1707769923314,-1284.95,0.0003726,2]
[313888457,1707769923323,-503.01,0.0003726,2]
[313888458,1707769923332,-705.93,0.0003726,2]
[313888459,1707769923341,-2474.64,0.0003726,2]
[313888460,1707769923350,-2229.26,0.0003726,2]
[313888461,1707769923359,-1347.04,0.0003726,2]
[313888462,1707769923368,-1299.67,0.0003726,2]
[313888463,1707769923378,-500.0,0.0003726,2]
[313888464,1707769923387,-1798.72,0.0003726,2]
[313888465,1707769923396,-1180.11,0.0003726,2]
[313888466,1707769923405,-2115.54,0.0003726,2]
[313888467,1707769923414,-513.48,0.0003726,2]
[313888468,1707769923423,-500.0,0.0003726,2]
[313888469,1707769923432,-3264.57,0.0003726,2]
[313888470,1707769923441,-3140.53,0.0003726,2]
[313888471,1707769923452,-511.99,0.0003726,2]
[313888472,1707769923462,-4051.49,0.0003726,2]
[313888473,1707769923472,-1799.2,0.0003726,2]
[313888474,1707769923482,-1680.38,0.0003726,2]
[313888475,1707769923491,-978.39,0.0003726,2]
[313888476,1707769923500,-522.7,0.0003726,2]
[313888477,1707769923510,-4240.45,0.0003726,2]
[313888478,1707769923521,-500.0,0.0003726,2]
[313888479,1707769923533,-5000.0,0.0003728,27]
[313888480,1707769923543,-25000.0,0.000373,2]
[313888481,1707769923552,-5977.125637,0.0003734,2]
[313888482,1707769923562,-1149.307006,0.0003734,2]
[313888483,1707769923572,-278.190001,0.0003734,2]
[313888484,1707769923583,-5428.373395,0.0003734,2]
[313888485,1707769923789,-326.55931,0.0003734,2]
[313888486,1707769923799,-50000.0,0.00037344,15]
[313888487,1707769923809,-50000.0,0.00037344,15]
[313888488,1707769923819,-50000.0,0.00037344,15]
[313888489,1707769923828,-302.0,0.0003737,4]
[313888490,1707769923837,-6235.42316739,0.0003739,2]
[313888491,1707769923847,-150.83,0.00037398,2]
[313888492,1707769923857,-150.0,0.00037398,2]
[313888493,1707769923869,-150.0,0.00037398,2]
[313888494,1707769923880,-150.0,0.00037398,2]
[313888495,1707769923890,-929.21,0.000374,3]
[313888496,1707769923900,-929.21,0.000374,3]
[313888497,1707769923909,-929.21,0.000374,3]
[313888498,1707769923919,-929.21,0.000374,3]
[313888499,1707769923930,-929.21,0.000374,3]
[313888500,1707769923940,-929.21,0.000374,3]
[313888501,1707769923950,-929.21,0.000374,3]
[313888502,1707769923961,-929.21,0.000374,3]
[313888503,1707769923972,-929.21,0.000374,3]
[313888504,1707769923982,-929.21,0.000374,3]
[313888505,1707769923995,-929.21,0.000374,3]
[313888506,1707769924005,-929.21,0.000374,3]
[313888507,1707769924015,-929.21,0.000374,3]
[313888508,1707769924025,-929.21,0.000374,3]
[313888509,1707769924034,-929.21,0.000374,3]
[313888510,1707769924044,-929.21,0.000374,3]
[313888511,1707769924053,-929.21,0.000374,3]
[313888512,1707769924063,-929.21,0.000374,3]
[313888513,1707769924072,-929.21,0.000374,3]
[313888514,1707769924081,-929.21,0.000374,3]
[313888515,1707769924090,-367.19,0.00037424,5]
[313888516,1707769924100,-20106.81,0.00037424,5]
[313888517,1707769924109,-500.0,0.00037456,10]
[313888518,1707769924119,-5000.0,0.0003748,28]
[313888519,1707769924128,-262.0,0.000375,30]
[313888520,1707769924138,-35674.71,0.000375,7]
[313888521,1707769924149,-2248.32,0.000375,7]
[313888522,1707769924159,-14641.06,0.000375,7]
[313888523,1707769924168,-547.91,0.000375,5]
[313888524,1707769924178,-41104.73,0.000375,5]
[313888525,1707769924187,-33142.42,0.000375,5]
[313888526,1707769924196,-10892.07,0.000375,5]
[313888527,1707769924206,-1000.0,0.000375,2]
[313888528,1707769924216,-255.70778611,0.00037515,2]
[313888529,1707769924226,-255.70778611,0.00037515,2]
[313888530,1707769924235,-255.70778611,0.00037515,2]
[313888531,1707769924246,-547.34308599,0.00037534,2]
[313888532,1707769924256,-500.0,0.00037534,2]
[313888533,1707769924266,-500.0,0.00037534,2]
[313888534,1707769924275,-500.0,0.00037534,2]
[313888535,1707769924284,-559.98846642,0.00037534,2]
[313888536,1707769924293,-966.32,0.00037534,2]
[313888537,1707769924302,-500.0,0.00037534,2]
[313888538,1707769924313,-807.54,0.00037534,2]
[313888539,1707769924322,-500.0,0.00037534,2]
[313888540,1707769924332,-509.91,0.00037534,2]
[313888541,1707769924342,-500.0,0.00037534,2]
[313888542,1707769924351,-500.0,0.00037534,2]
[313888543,1707769924362,-500.22,0.00037534,2]
[313888544,1707769924371,-580.77,0.00037534,2]
[313888545,1707769924382,-500.0,0.00037534,2]
[313888546,1707769924392,-952.06,0.00037534,2]
[313888547,1707769924401,-500.0,0.00037534,2]
[313888548,1707769924412,-538.47,0.00037534,2]
[313888549,1707769924421,-374.95400586,0.00037534,2]
[313888550,1707769924430,-1235.07,0.00037534,2]
[313888551,1707769924440,-500.0,0.00037534,2]
[313888552,1707769924450,-1080.75,0.00037534,2]
[313888553,1707769924461,-728.15,0.00037534,2]
[313888554,1707769924471,-796.14,0.00037534,2]
[313888555,1707769924480,-588.98,0.00037534,2]
[313888556,1707769924490,-5409.76,0.00037534,2]
[313888557,1707769924499,-500.0,0.00037534,2]
[313888558,1707769924509,-1331.32,0.00037534,2]
[313888559,1707769924518,-917.05,0.00037534,2]
[313888560,1707769924528,-3280.01,0.00037534,2]
[313888561,1707769924539,-9977.66,0.00037534,2]
[313888562,1707769924548,-500.0,0.00037534,2]
[313888563,1707769924559,-4143.77,0.00037534,2]
[313888564,1707769924568,-5964.37,0.00037534,2]
[313888565,1707769924579,-695.09,0.00037534,2]
[313888566,1707769924589,-561.48,0.00037534,2]
[313888567,1707769924598,-843.63,0.00037534,2]
[313888568,1707769924607,-984.81,0.00037534,2]
[313888569,1707769924618,-1158.95,0.00037534,2]
[313888570,1707769924628,-500.0,0.00037534,2]
[313888571,1707769924638,-500.0,0.00037534,2]
[313888572,1707769924648,-2406.89,0.00037534,2]
[313888573,1707769924658,-578.56,0.00037534,2]
[313888574,1707769924669,-819.76,0.00037534,2]
[313888575,1707769924678,-1375.77,0.00037534,2]
[313888576,1707769924687,-4244.4,0.00037534,2]
[313888577,1707769924697,-500.0,0.00037534,2]
[313888578,1707769924707,-424.38,0.00037534,2]
[313888579,1707769924717,-500.0,0.00037534,2]
[313888580,1707769924727,-846.93,0.00037534,2]
[313888581,1707769924737,-3071.04,0.00037534,2]
[313888582,1707769924747,-728.9,0.00037534,2]
[313888583,1707769924756,-616.73,0.00037534,2]
[313888584,1707769924766,-500.0,0.00037534,2]
[313888585,1707769924775,-560.54,0.00037534,2]
[313888586,1707769924785,-1820.56,0.00037534,2]
[313888587,1707769924794,-743.91,0.00037534,2]
[313888588,1707769924804,-500.0,0.00037534,2]
[313888589,1707769924814,-735.16,0.00037534,2]
[313888590,1707769924823,-1028.39,0.00037534,2]
[313888591,1707769924832,-1049.27,0.00037534,2]
[313888592,1707769924842,-4338.57,0.00037534,2]
[313888593,1707769924852,-2013.56,0.00037534,2]
[313888594,1707769924861,-1012.67,0.00037534,2]
[313888595,1707769924871,-1445.06,0.00037534,2]
[313888596,1707769924880,-500.0,0.00037534,2]
[313888597,1707769924890,-1677.14,0.00037534,2]
[313888598,1707769924899,-951.75,0.00037534,2]
[313888599,1707769924908,-1575.25,0.00037534,2]
[313888600,1707769924918,-1311.14,0.00037534,2]
[313888601,1707769924928,-1386.13,0.00037534,2]
[313888602,1707769924937,-893.85,0.00037534,2]
[313888603,1707769924946,-1280.91,0.00037534,2]
[313888604,1707769924957,-500.0,0.00037534,2]
[313888605,1707769924967,-7777.87,0.00037534,2]
[313888606,1707769924975,-501.05,0.00037534,2]
[313888607,1707769924985,-502.28,0.00037534,2]
[313888608,1707769924994,-814.8,0.00037534,2]
[313888609,1707769925004,-961.32,0.00037534,2]
[313888610,1707769925014,-500.0,0.00037534,2]
[313888611,1707769925023,-551.08,0.00037534,2]
[313888612,1707769925032,-500.0,0.00037534,2]
[313888613,1707769925042,-812.86,0.00037534,2]
[313888614,1707769925051,-512.59,0.00037534,2]
[313888615,1707769925062,-1261.01,0.00037534,2]
[313888616,1707769925071,-5713.47,0.00037534,2]
[313888617,1707769925081,-5782.92,0.00037534,2]
[313888618,1707769925090,-3592.16,0.00037534,2]
[313888619,1707769925100,-454.57,0.00037534,2]
[313888620,1707769925109,-1417.96,0.00037534,2]
[313888621,1707769925118,-1507.74,0.00037534,2]
[313888622,1707769925127,-500.0,0.00037534,2]
[313888623,1707769925136,-255.94,0.00037534,2]
[313888624,1707769925146,-2719.11,0.00037534,2]
[313888625,1707769925155,-735.15,0.00037534,2]
[313888626,1707769925165,-1563.36,0.00037534,2]
[313888627,1707769925175,-953.13,0.00037534,2]
[313888628,1707769925184,-1284.95,0.00037534,2]
[313888629,1707769925193,-503.01,0.00037534,2]
[313888630,1707769925204,-705.93,0.00037534,2]
[313888631,1707769925213,-2474.64,0.00037534,2]
[313888632,1707769925222,-2229.26,0.00037534,2]
[313888633,1707769925232,-1347.04,0.00037534,2]
[313888634,1707769925242,-1299.67,0.00037534,2]
[313888635,1707769925251,-500.0,0.00037534,2]
[313888636,1707769925260,-1798.72,0.00037534,2]
[313888637,1707769925270,-1180.11,0.00037534,2]
[313888638,1707769925279,-2115.54,0.00037534,2]
[313888639,1707769925288,-513.48,0.00037534,2]
[313888640,1707769925297,-500.0,0.00037534,2]
[313888641,1707769925307,-3264.57,0.00037534,2]
[313888642,1707769925316,-3140.53,0.00037534,2]
[313888643,1707769925325,-511.99,0.00037534,2]
[313888644,1707769925334,-4051.49,0.00037534,2]
[313888645,1707769925343,-1799.2,0.00037534,2]
[313888646,1707769925352,-1680.38,0.00037534,2]
[313888647,1707769925361,-978.39,0.00037534,2]
[313888648,1707769925370,-522.7,0.00037534,2]
[313888649,1707769925379,-4240.45,0.00037534,2]
[313888650,1707769925388,-500.0,0.00037534,2]
[313888651,1707769925398,-316.18,0.0003759,2]
[313888652,1707769925407,-200000.0,0.00037603,15]
[313888653,1707769925417,-122148.0,0.00037646,20]
[313888654,1707769925426,-1000.0,0.00037649,10]
[313888655,1707769925435,-1000.0,0.00037649,10]
[313888656,1707769925444,-1000.0,0.00037649,10]
[313888657,1707769925454,-1000.0,0.00037649,10]
[313888658,1707769925464,-1000.0,0.00037649,10]
[313888659,1707769925473,-150.0,0.00037651,2]
[313888660,1707769925483,-151.0,0.00037651,2]
[313888661,1707769925492,-152.35,0.00037651,2]
[313888662,1707769925501,-591.0,0.00037651,2]
[313888663,1707769925510,-150.0,0.00037651,2]
[313888664,1707769925519,-408.9,0.00037651,2]
[313888665,1707769925528,-500.0,0.00037671,14]
[313888666,1707769925537,-211.0,0.0003768,2]
[313888667,1707769925546,-262.0,0.000377,30]
[313888668,1707769925555,-200.0,0.000377,11]
[313888669,1707769925564,-50000.0,0.00037759,15]
[313888670,1707769925575,-50000.0,0.00037759,15]
[313888671,1707769925588,-50000.0,0.00037759,15]
[313888672,1707769925597,-50000.0,0.00037759,15]
[313888673,1707769925607,-1000.0,0.000378,5]
[313888674,1707769925617,-35674.71,0.000378,7]
[313888675,1707769925626,-2248.32,0.000378,7]
[313888676,1707769925635,-14641.06,0.000378,7]
[313888677,1707769925645,-250.0,0.000378,12]
[313888678,1707769925654,-152.216947,0.00037801,2]
[313888679,1707769925664,-152.747184,0.00037801,2]
[313888680,1707769925673,-5977.125637,0.00037801,2]
[313888681,1707769925682,-1149.307006,0.00037801,2]
[313888682,1707769925692,-278.190001,0.00037801,2]
[313888683,1707769925701,-5428.373395,0.00037801,2]
[313888684,1707769925711,-326.55931,0.00037801,2]
[313888685,1707769925720,-478.15,0.00037808,2]
[313888686,1707769925729,-345.18,0.00037808,2]
[313888687,1707769925738,-500.0,0.00037808,2]
[313888688,1707769925748,-966.32,0.00037808,2]
[313888689,1707769925757,-500.0,0.00037808,2]
[313888690,1707769925766,-807.54,0.00037808,2]
[313888691,1707769925775,-254.01527597,0.00037808,2]
[313888692,1707769925784,-509.91,0.00037808,2]
[313888693,1707769925794,-500.0,0.00037808,2]
[313888694,1707769925804,-543.55,0.00037808,2]
[313888695,1707769925813,-500.22,0.00037808,2]
[313888696,1707769925822,-580.77,0.00037808,2]
[313888697,1707769925832,-500.0,0.00037808,2]
[313888698,1707769925841,-952.06,0.00037808,2]
[313888699,1707769925851,-500.0,0.00037808,2]
[313888700,1707769925861,-538.47,0.00037808,2]
[313888701,1707769925871,-1235.07,0.00037808,2]
[313888702,1707769925881,-500.0,0.00037808,2]
[313888703,1707769925891,-1080.75,0.00037808,2]
[313888704,1707769925901,-728.15,0.00037808,2]
[313888705,1707769925911,-796.14,0.00037808,2]
[313888706,1707769925921,-588.98,0.00037808,2]
[313888707,1707769925931,-5409.76,0.00037808,2]
[313888708,1707769925940,-500.0,0.00037808,2]
[313888709,1707769925950,-1331.32,0.00037808,2]
[313888710,1707769925960,-917.05,0.00037808,2]
[313888711,1707769925970,-3280.01,0.00037808,2]
[313888712,1707769925979,-9977.66,0.00037808,2]
[313888713,1707769925988,-500.0,0.00037808,2]
[313888714,1707769925997,-4143.77,0.00037808,2]
[313888715,1707769926006,-5964.37,0.00037808,2]
[313888716,1707769926016,-695.09,0.00037808,2]
[313888717,1707769926026,-561.48,0.00037808,2]
[313888718,1707769926035,-843.63,0.00037808,2]
[313888719,1707769926044,-984.81,0.00037808,2]
[313888720,1707769926053,-1158.95,0.00037808,2]
[313888721,1707769926062,-500.0,0.00037808,2]
[313888722,1707769926072,-500.0,0.00037808,2]
[313888723,1707769926082,-2406.89,0.00037808,2]
[313888724,1707769926092,-578.56,0.00037808,2]
[313888725,1707769926101,-819.76,0.00037808,2]
[313888726,1707769926110,-1375.77,0.00037808,2]
[313888727,1707769926120,-4244.4,0.00037808,2]
[313888728,1707769926129,-500.0,0.00037808,2]
[313888729,1707769926137,-500.0,0.00037808,2]
[313888730,1707769926147,-846.93,0.00037808,2]
[313888731,1707769926156,-3071.04,0.00037808,2]
[313888732,1707769926166,-728.9,0.00037808,2]
[313888733,1707769926175,-616.73,0.00037808,2]
[313888734,1707769926185,-500.0,0.00037808,2]
[313888735,1707769926195,-560.54,0.00037808,2]
[313888736,1707769926206,-1820.56,0.00037808,2]
[313888737,1707769926216,-743.91,0.00037808,2]
[313888738,1707769926226,-500.0,0.00037808,2]
[313888739,1707769926235,-735.16,0.00037808,2]
[313888740,1707769926245,-1028.39,0.00037808,2]
[313888741,1707769926255,-1049.27,0.00037808,2]
[313888742,1707769926264,-4338.57,0.00037808,2]
[313888743,1707769926274,-2013.56,0.00037808,2]
[313888744,1707769926283,-1012.67,0.00037808,2]
[313888745,1707769926293,-1445.06,0.00037808,2]
[313888746,1707769926301,-190.41,0.00037808,2]
[313888747,1707769926311,-1677.14,0.00037808,2]
[313888748,1707769926321,-951.75,0.00037808,2]
[313888749,1707769926331,-1575.25,0.00037808,2]
[313888750,1707769926340,-1311.14,0.00037808,2]
[313888751,1707769926349,-1386.13,0.00037808,2]
[313888752,1707769926359,-893.85,0.00037808,2]
[313888753,1707769926368,-1280.91,0.00037808,2]
[313888754,1707769926378,-500.0,0.00037808,2]
[313888755,1707769926387,-7777.87,0.00037808,2]
[313888756,1707769926396,-501.05,0.00037808,2]
[313888757,1707769926405,-502.28,0.00037808,2]
[313888758,1707769926414,-814.8,0.00037808,2]
[313888759,1707769926423,-961.32,0.00037808,2]
[313888760,1707769926432,-500.0,0.00037808,2]
[313888761,1707769926442,-551.08,0.00037808,2]
[313888762,1707769926450,-265.27591551,0.00037808,2]
[313888763,1707769926461,-812.86,0.00037808,2]
[313888764,1707769926471,-512.59,0.00037808,2]
[313888765,1707769926480,-1261.01,0.00037808,2]
[313888766,1707769926489,-5713.47,0.00037808,2]
[313888767,1707769926499,-5782.92,0.00037808,2]
[313888768,1707769926509,-3592.16,0.00037808,2]
[313888769,1707769926518,-1417.96,0.00037808,2]
[313888770,1707769926527,-1507.74,0.00037808,2]
[313888771,1707769926537,-500.0,0.00037808,2]
[313888772,1707769926546,-2719.11,0.00037808,2]
[313888773,1707769926556,-735.15,0.00037808,2]
[313888774,1707769926566,-1563.36,0.00037808,2]
[313888775,1707769926574,-953.13,0.00037808,2]
[313888776,1707769926587,-1284.95,0.00037808,2]
[313888777,1707769926597,-503.01,0.00037808,2]
[313888778,1707769926606,-705.93,0.00037808,2]
[313888779,1707769926771,-2474.64,0.00037808,2]
[313888780,1707769926782,-2229.26,0.00037808,2]
[313888781,1707769926792,-1347.04,0.00037808,2]
[313888782,1707769926802,-500.0,0.00037808,2]
[313888783,1707769926811,-1299.67,0.00037808,2]
[313888784,1707769926820,-1798.72,0.00037808,2]
[313888785,1707769926830,-1180.11,0.00037808,2]
[313888786,1707769926839,-2115.54,0.00037808,2]
[313888787,1707769926848,-513.48,0.00037808,2]
[313888788,1707769926858,-500.0,0.00037808,2]
[313888789,1707769926868,-3264.57,0.00037808,2]
[313888790,1707769926877,-3140.53,0.00037808,2]
[313888791,1707769926886,-511.99,0.00037808,2]
[313888792,1707769926896,-4051.49,0.00037808,2]
[313888793,1707769926905,-1799.2,0.00037808,2]
[313888794,1707769926915,-1680.38,0.00037808,2]
[313888795,1707769926924,-978.39,0.00037808,2]
[313888796,1707769926933,-522.7,0.00037808,2]
[313888797,1707769926943,-4240.45,0.00037808,2]
[313888798,1707769926953,-573.8,0.00037808,2]
[313888799,1707769926963,-51255.700925,0.0003787,3]
[313888800,1707769926972,-154.16,0.00037873,2]
[313888801,1707769926982,-103188.82673957,0.0003788,10]
[313888802,1707769926992,-258.96869045,0.00037884,10]
[313888803,1707769927002,-21029.88998652,0.00037884,4]
[313888804,1707769927011,-200.0,0.0003789,7]
[313888805,1707769927021,-200.0,0.0003789,7]
[313888806,1707769927030,-153614.49653775,0.00037895,10]
[313888807,1707769927040,-507.78174598,0.00037896,10]
[313888808,1707769927049,-262.0,0.000379,30]
[313888809,1707769927058,-630436.497771,0.000379,2]
[313888810,1707769927068,-153614.49653775,0.00037907,10]
[313888811,1707769927077,-15447.36354302,0.00037907,10]
[313888812,1707769927086,-271.13012318,0.00037908,10]
[313888813,1707769927095,-531.62769252,0.00037913,10]
[313888814,1707769927104,-531.62769252,0.00037914,10]
[313888815,1707769927114,-9033.18810424,0.00037917,10]
[313888816,1707769927123,-9033.18810424,0.00037922,10]
[313888817,1707769927133,-258.96869045,0.00037929,10]
[313888818,1707769927142,-271.13012318,0.00037933,10]
[313888819,1707769927152,-1674713.9474396,0.00037933,10]
[313888820,1707769927162,-1000.0,0.00037941,10]
[313888821,1707769927172,-15447.36354302,0.00037942,10]
[313888822,1707769927180,-1674713.9474396,0.00037944,10]
[313888823,1707769927190,-507.78174598,0.00037944,10]
[313888824,1707769927199,-153.60645692,0.00037949,2]
[313888825,1707769927209,-400.0,0.0003797,2]
[313888826,1707769927218,-2668.0,0.00037978,29]
[313888827,1707769927228,-500.0,0.00037987,3]
[313888828,1707769927237,-1000.0,0.00037992,10]
[313888829,1707769927246,-604.0,0.00037998,7]